bitfinex/quotes_ETHUSD_20241119
["timestamp","ask_amount","ask_price","bid_price","bid_amount"]
[1732029544366,3.22509,3100.7,3100.0,0.55]
[1732029544566,3.22502,3100.8,3100.0,0.55]
[1732029544865,3.22521,3100.6,3100.0,0.55]
[1732029545095,0.7809,3101.0,3099.7,0.8283]
[1732029545412,3.22546,3100.4,3099.8,3.776]
[1732029545610,3.22521,3100.6,3099.9,3.22589]
[1732029545909,3.0,3100.7,3100.2,3.2255]
[1732029546127,3.0,3100.7,3100.3,0.8162]
[1732029546433,4.00569,3101.0,3100.3,0.8162]
[1732029546434,3.22457,3101.2,3100.4,3.77537]
[1732029546716,3.22457,3101.2,3100.6,3.22511]
[1732029547505,6.44837,3101.6,3100.9,4.04386]
[1732029547722,3.22429,3101.5,3100.9,0.819]
[1732029547869,3.22446,3101.3,3100.9,0.819]
[1732029548066,3.22429,3101.5,3100.9,0.819]
[1732029548299,3.22446,3101.3,3100.9,0.819]
[1732029548602,3.22482,3101.0,3100.5,0.819]
[1732029548809,3.2246,3101.2,3100.6,3.77508]
[1732029548977,3.22437,3101.4,3100.8,0.55]
[1732029549180,3.55987426,3101.8,3101.0,0.55]
[1732029549384,3.22424,3101.6,3101.0,3.77469]
[1732029549966,0.8054,3102.0,3101.0,3.77469]
[1732029549967,3.22435,3101.4,3101.0,0.55]
[1732029550205,3.22435,3101.4,3100.9,0.819]
[1732029550206,3.22464,3101.2,3100.9,0.819]
[1732029550366,3.0,3101.1,3100.3,1.3739]
[1732029550566,0.7618,3101.4,3100.3,0.8239]
[1732029550567,3.22476,3101.0,3100.3,0.8239]
[1732029551116,3.0,3101.1,3100.4,3.22529]
[1732029551348,3.22451,3101.3,3100.5,0.7924]
[1732029551471,3.22455,3101.2,3100.7,3.22507]
[1732029551674,3.22425,3101.5,3100.8,3.22496]
[1732029551894,3.22445,3101.3,3100.7,0.55]
[1732029552094,3.22462,3101.2,3100.7,0.55]
[1732029552424,3.22453,3101.3,3100.7,0.55]
[1732029552801,3.22453,3101.3,3100.8,0.55]
[1732029552995,3.0,3101.4,3100.8,3.77488]
[1732029553168,3.0,3101.4,3100.8,0.55]
[1732029553377,3.22468,3101.1,3100.7,0.55]
[1732029553670,3.22513,3100.7,3100.5,0.7924]
[1732029553900,3.22518,3100.6,3100.1,0.8006]
[1732029554218,3.2249,3100.9,3100.3,3.2254]
[1732029554507,3.98139,3101.1,3100.3,3.2254]
[1732029554508,3.22466,3101.1,3100.5,3.22523]
[1732029554722,3.22455,3101.2,3100.6,0.8217]
[1732029554872,3.22499,3100.8,3100.3,0.8217]
[1732029555065,3.0,3101.2,3100.3,0.8217]
[1732029555266,3.0,3101.2,3100.4,0.55]
[1732029555505,4.05625,3101.5,3100.4,0.55]
[1732029555671,3.22483,3101.0,3100.4,3.77538]
[1732029555866,3.0,3101.3,3100.4,3.77538]
[1732029555867,3.0,3101.1,3100.4,0.55]
[1732029556198,3.2256,3100.2,3099.7,3.22602]
[1732029556400,3.2256,3100.2,3099.5,3.22627]
[1732029556401,3.22514,3100.7,3100.1,3.22567]
[1732029556603,3.22551,3100.3,3099.9,0.8259]
[1732029556787,0.8302,3101.2,3099.9,0.8259]
[1732029556989,3.2258,3100.0,3099.9,0.8259]
[1732029557283,0.8008,3101.0,3099.9,0.8259]
[1732029557284,3.22562,3100.2,3099.9,0.8259]
[1732029557486,3.22552,3100.3,3099.9,0.8259]
[1732029557887,3.22537,3100.5,3099.9,4.05178]
[1732029558220,3.22489,3100.9,3099.9,4.05178]
[1732029558221,3.22459,3101.2,3100.2,0.55]
[1732029558383,3.22482,3101.0,3100.5,0.55]
[1732029558596,3.225,3100.8,3100.6,0.7848]
[1732029558801,3.22541,3100.4,3099.6,0.7703]
[1732029559113,3.22541,3100.4,3099.9,0.55]
[1732029559323,3.22563,3100.2,3099.7,0.55]
[1732029559520,3.22578,3100.1,3099.7,0.55]
[1732029559814,3.22487,3100.9,3099.7,0.71213]
[1732029560016,3.22487,3100.9,3099.7,0.55]
[1732029560017,3.22584,3100.0,3099.7,0.55]
[1732029560234,3.22584,3100.0,3099.6,0.7703]
[1732029560372,3.22553,3100.3,3099.7,3.22607]
[1732029560578,3.98521,3101.0,3099.6,0.7703]
[1732029560794,3.22585,3100.0,3099.7,0.399653]
[1732029561016,3.22585,3100.0,3099.6,0.7703]
[1732029561017,3.22565,3100.2,3099.6,0.7703]
[1732029561213,3.22599,3099.9,3099.6,0.7703]
[1732029561699,3.22573,3100.1,3099.6,0.7703]
[1732029561908,3.22581,3100.0,3099.6,0.7703]
[1732029562076,3.22611,3099.7,3099.2,0.7852]
[1732029562277,3.22597,3099.9,3099.3,3.22653]
[1732029562725,3.22575,3100.1,3099.4,3.2264]
[1732029562889,3.22564,3100.2,3099.7,3.22611]
[1732029563317,3.22546,3100.4,3099.8,0.55]
[1732029563538,3.22546,3100.4,3099.7,0.951672]
[1732029563539,3.2256,3100.2,3099.7,0.951672]
[1732029563679,3.22546,3100.4,3099.7,0.951672]
[1732029564021,3.0,3100.6,3099.9,3.77584]
[1732029564022,3.22531,3100.5,3099.9,3.77584]
[1732029564225,3.22531,3100.5,3100.1,0.55]
[1732029564406,6.22521,3100.6,3100.1,0.55]
[1732029564607,3.22539,3100.4,3100.1,0.55]
[1732029565403,0.33596488,3100.9,3100.1,1.004974]
[1732029565646,3.2252,3100.6,3100.1,1.004974]
[1732029565805,3.2252,3100.6,3100.1,0.55]
[1732029566148,3.22547,3100.4,3100.1,0.55]
[1732029566443,3.22546,3100.4,3100.1,0.55]
[1732029566660,6.45092,3100.4,3100.1,0.55]
[1732029566804,3.22546,3100.4,3100.1,0.55]
[1732029567244,3.22555,3100.3,3100.1,0.55]
[1732029568499,3.22534,3100.5,3099.8,0.8322]
[1732029568737,6.45078,3100.4,3099.8,0.8322]
[1732029568943,3.0,3100.4,3099.8,0.8322]
[1732029569147,3.22582,3100.0,3099.8,0.8322]
[1732029569506,6.45112,3100.3,3099.8,0.8322]
[1732029569709,3.22555,3100.3,3099.9,0.55]
[1732029570057,3.22536,3100.5,3099.9,4.236645]
[1732029570221,3.22536,3100.5,3100.1,0.55]
[1732029570435,3.2251,3100.7,3100.3,0.55]
[1732029570622,3.56088488,3100.9,3100.3,3.77541]
[1732029570822,3.2247,3101.1,3100.5,0.55]
[1732029571067,3.2247,3101.1,3100.5,3.77523]
[1732029571235,0.33594562,3101.3,3100.9,0.55]
[1732029571586,3.22443,3101.4,3100.9,0.55]
[1732029571804,6.44886,3101.4,3100.8,0.55]
[1732029571918,3.22456,3101.2,3100.8,0.55]
[1732029572121,3.22443,3101.4,3100.8,3.77494]
[1732029572323,3.22452,3101.3,3100.7,0.55]
[1732029572563,1.1430481,3102.0,3100.7,0.55]
[1732029572762,3.22431,3101.5,3101.1,0.7749]
[1732029572934,3.0,3101.6,3101.1,0.7749]
[1732029573131,3.22433,3101.5,3101.1,0.7749]
[1732029573662,3.22442,3101.4,3100.9,0.55]
[1732029573971,3.22441,3101.4,3100.9,0.55]
[1732029574167,3.2242,3101.6,3100.8,4.03016]
[1732029574168,3.22476,3101.0,3100.8,0.8052]
[1732029574470,3.22476,3101.0,3099.9,3.0]
[1732029574471,3.22493,3100.9,3100.6,0.8052]
[1732029574838,3.22515,3100.7,3100.3,0.8052]
[1732029575022,3.22513,3100.7,3100.3,0.8052]
[1732029575760,3.22483,3101.0,3100.4,3.22531]
[1732029575938,3.22457,3101.2,3100.5,3.22526]
[1732029576135,3.22457,3101.2,3100.5,6.45048]
[1732029576475,3.22457,3101.2,3100.7,3.77503]
[1732029576775,3.22454,3101.3,3100.8,0.55]
[1732029577122,3.22456,3101.2,3100.8,0.55]
[1732029577739,6.4492,3101.2,3100.8,0.55]
[1732029577929,3.22458,3101.2,3100.8,0.55]
[1732029578435,3.22417,3101.6,3100.8,0.55]
[1732029578436,3.22472,3101.1,3100.8,0.55]
[1732029578826,3.22514,3100.7,3100.3,0.8293]
[1732029579265,3.22491,3100.9,3100.3,0.8293]
[1732029579266,3.22495,3100.9,3100.3,0.8293]
[1732029579778,3.22507,3100.7,3100.3,0.8293]
[1732029580067,3.22496,3100.9,3100.4,0.55]
[1732029580234,3.22518,3100.6,3100.4,0.55]
[1732029580567,3.22528,3100.5,3100.3,0.8293]
[1732029580870,0.8175,3101.1,3100.0,0.7787]
[1732029580871,3.2249,3100.9,3100.0,0.7787]
[1732029581167,0.8175,3101.1,3099.4,3.22636]
[1732029581168,3.22565,3100.2,3099.4,3.22636]
[1732029581326,3.22583,3100.0,3099.4,3.22636]
[1732029581634,0.8175,3100.5,3099.5,1.35381547]
[1732029581834,3.22569,3100.2,3099.6,3.22621]
[1732029582052,0.8175,3100.5,3099.3,4.00515]
[1732029582365,3.22591,3099.9,3099.4,0.400515]
[1732029582668,3.22591,3099.9,3099.5,0.55]
[1732029582882,3.2257,3100.1,3099.5,3.77626]
[1732029583052,3.22554,3100.3,3099.7,3.77608]
[1732029583251,3.22485,3101.0,3100.3,0.55]
[1732029583252,3.22503,3100.8,3100.3,0.55]
[1732029583585,3.22487,3100.9,3100.4,0.7832]
[1732029583731,3.22461,3101.2,3100.5,0.55]
[1732029583926,3.22482,3101.0,3100.5,0.55]
[1732029584165,3.22468,3101.1,3100.5,3.77522]
[1732029584350,3.22468,3101.1,3100.5,4.5936809]
[1732029584568,3.22461,3101.2,3100.8,0.7599]
[1732029584876,3.22446,3101.3,3100.9,0.55]
[1732029585226,3.22439,3101.4,3100.9,0.55]
[1732029585468,3.22458,3101.2,3100.9,0.55]
[1732029586047,3.22458,3101.2,3096.2,30.980217]
[1732029586048,3.22518,3100.6,3099.7,3.0]
[1732029586249,3.22545,3100.4,3099.8,0.7983]
[1732029586548,3.22576,3100.1,3099.8,0.7983]
[1732029587380,3.22588,3100.0,3099.8,0.7983]
[1732029587952,3.22588,3100.0,3099.5,0.7983]
[1732029588177,3.22601,3099.9,3099.5,0.7983]
[1732029588327,3.22611,3099.8,3099.5,0.7983]
[1732029588533,3.22601,3099.9,3099.5,0.7983]
[1732029588971,3.22607,3099.8,3099.5,0.7983]
[1732029589577,3.0,3100.4,3099.5,0.7983]
[1732029589780,3.0,3100.4,3099.3,0.6333832]
[1732029589781,0.7644,3099.9,3099.4,0.55]
[1732029590084,0.7644,3099.9,3099.1,3.77672]
[1732029590085,3.22622,3099.6,3099.1,3.77672]
[1732029590258,0.7644,3099.9,3099.3,0.55]
[1732029590583,3.22613,3099.7,3099.3,0.55]
[1732029590738,3.22623,3099.6,3099.3,0.55]
[1732029590940,3.22623,3099.6,3099.2,0.55]
[1732029591134,3.22612,3099.7,3099.2,1.0496799]
[1732029591678,3.22671,3099.2,3098.8,0.65443919]
[1732029591881,0.7644,3099.9,3098.6,0.7827]
[1732029592087,3.22664,3099.2,3098.6,0.7827]
[1732029592389,3.22664,3099.2,3098.6,4.0099]
[1732029592586,4.00779,3099.2,3098.6,0.7827]
[1732029592788,0.7811,3099.2,3098.6,0.7827]
[1732029593021,3.22654,3099.3,3098.8,0.55]
[1732029593221,3.0,3100.1,3098.8,3.77705]
[1732029593222,0.7811,3099.4,3098.8,3.77705]
[1732029593392,3.22659,3099.3,3098.7,0.55]
[1732029593719,3.22683,3099.1,3098.7,0.55]
[1732029593883,3.22683,3099.1,3098.6,0.7827]
[1732029594083,3.22697,3098.9,3098.6,0.7827]
[1732029594396,3.22662,3099.3,3098.6,4.410944]
[1732029594590,3.22672,3099.2,3098.6,0.7827]
[1732029594905,3.22684,3099.0,3098.6,0.7827]
[1732029595125,3.22705,3098.9,3098.6,0.7827]
[1732029595334,3.22706,3098.8,3098.7,0.55]
[1732029596766,3.22706,3098.8,3098.2,0.55]
[1732029596882,0.8099,3099.2,3098.3,3.22747]
[1732029596883,6.45381,3099.0,3098.3,3.22747]
[1732029597087,3.22697,3098.9,3098.4,0.55]
[1732029597286,0.8099,3099.2,3098.2,0.55]
[1732029597287,4.03663,3099.2,3098.2,0.55]
[1732029597497,0.7949,3099.5,3098.6,0.55]
[1732029597703,3.22713,3098.8,3098.2,0.55]
[1732029598230,3.22689,3099.0,3098.4,0.55]
[1732029598231,6.45383,3099.0,3098.4,0.55]
[1732029598428,3.22696,3098.9,3098.4,0.55]
[1732029599023,3.22689,3099.0,3098.4,0.55]
[1732029599230,3.22689,3099.0,3098.4,3.77743]
[1732029599524,3.22647,3099.4,3098.8,0.55]
[1732029599688,3.22655,3099.3,3099.0,0.55]
[1732029600224,3.22659,3099.3,3099.0,0.55]
[1732029600430,3.22659,3099.3,3098.0,0.8161]
[1732029600431,3.22764,3098.3,3098.0,0.8161]
[1732029600616,3.22764,3098.3,3096.9,2.01568749]
[1732029600617,3.22778,3098.1,3097.7,0.8161]
[1732029600822,3.22789,3098.0,3097.7,0.8161]
[1732029601121,3.22799,3097.9,3097.7,0.8161]
[1732029601327,3.22778,3098.2,3097.7,0.8161]
[1732029601496,3.22757,3098.3,3097.2,0.65726063]
[1732029601700,3.22841,3097.5,3097.3,0.7928]
[1732029602305,3.22808,3097.9,3097.3,4.0214]
[1732029602627,3.22784,3098.1,3097.3,1.19494]
[1732029602812,0.7865,3098.3,3097.4,3.22845]
[1732029602813,3.22768,3098.2,3097.4,3.22845]
[1732029603124,3.22784,3098.1,3097.5,3.77834]
[1732029603687,3.22784,3098.1,3097.5,0.55]
[1732029603886,3.228,3097.9,3097.5,0.55]
[1732029604434,3.22828,3097.7,3097.4,0.55]
[1732029604590,3.22816,3097.8,3097.4,0.55]
[1732029604786,3.22824,3097.7,3097.4,0.55]
[1732029605239,3.22837,3097.6,3097.4,0.55]
[1732029605525,3.22794,3098.0,3097.4,3.77849]
[1732029605732,3.22794,3098.0,3097.4,4.558473]
[1732029605892,3.22794,3098.0,3097.4,1.329983]
[1732029606343,3.228,3097.9,3097.4,1.329983]
[1732029606826,3.22812,3097.8,3097.4,1.329983]
[1732029607032,3.22874,3097.2,3096.9,1.39219684]
[1732029607186,3.22874,3097.2,3096.9,0.751]
[1732029607389,3.22893,3097.0,3096.5,0.751]
[1732029607592,3.22898,3097.0,3096.5,0.751]
[1732029608075,3.22913,3096.9,3096.5,0.751]
[1732029608333,3.2289,3097.1,3096.5,0.751]
[1732029608537,3.2289,3097.1,3096.5,1.1813492]
[1732029608700,3.22895,3097.0,3096.6,0.63945063]
[1732029608899,3.22853,3097.4,3096.9,0.55]
[1732029609216,3.22853,3097.4,3097.0,0.55]
[1732029610000,3.22792,3098.0,3097.2,3.22866]
[1732029610001,3.22813,3097.8,3097.2,3.22866]
[1732029610199,3.22799,3097.9,3097.3,4.237116]
[1732029610425,3.2279,3098.0,3097.6,0.55]
[1732029610426,3.22796,3098.0,3097.6,0.55]
[1732029610623,3.22798,3098.0,3097.6,0.55]
[1732029610842,3.22801,3097.9,3097.2,0.55]
[1732029611048,3.22795,3098.0,3097.4,3.22849]
[1732029611258,3.22795,3098.0,3097.5,0.55]
[1732029611419,3.22772,3098.2,3097.5,3.77839]
[1732029611746,3.22751,3098.4,3097.8,0.8221]
[1732029611955,3.22751,3098.4,3097.9,3.77797]
[1732029612106,0.8273,3098.9,3097.9,0.55]
[1732029612305,3.22775,3098.2,3097.9,0.55]
[1732029612844,3.2276,3098.3,3097.9,0.55]
[1732029613863,0.8273,3098.9,3097.9,0.55]
[1732029614016,0.8273,3098.9,3097.9,1.010025]
[1732029614223,3.22739,3098.5,3097.9,3.77789]
[1732029614526,3.0,3098.6,3097.9,3.77789]
[1732029614736,3.22748,3098.4,3097.9,0.55]
[1732029614927,3.22766,3098.3,3097.9,0.55]
[1732029615246,3.22787,3098.1,3097.8,0.8221]
[1732029615448,3.22816,3097.8,3097.5,0.55]
[1732029615651,3.2283,3097.6,3097.1,0.7577]
[1732029615852,3.22873,3097.2,3096.8,0.7577]
[1732029616068,3.22883,3097.1,3096.6,0.6407708]
[1732029616214,3.22888,3097.1,3096.6,0.6407708]
[1732029616417,3.22934,3096.6,3096.0,0.8013]
[1732029616714,0.8291,3097.0,3096.0,0.8013]
[1732029616913,3.2293,3096.7,3096.0,0.8013]
[1732029617118,3.22951,3096.5,3096.0,0.8013]
[1732029617556,3.22946,3096.5,3096.0,0.8013]
[1732029617715,3.22965,3096.4,3096.0,0.8013]
[1732029617919,3.22965,3096.4,3096.1,0.55]
[1732029618116,3.22965,3096.4,3096.0,0.8013]
[1732029618358,3.0,3096.8,3095.4,0.7539]
[1732029618571,3.0,3096.8,3095.4,3.98449]
[1732029618572,3.23008,3095.9,3095.4,3.98449]
[1732029618712,3.0,3096.8,3095.4,0.7539]
[1732029618923,3.23015,3095.9,3095.4,0.7539]
[1732029619113,3.23025,3095.8,3095.4,1.25679055]
[1732029619394,3.23025,3095.8,3095.4,0.7539]
[1732029619568,3.23001,3096.0,3095.4,0.7539]
[1732029619745,3.23016,3095.9,3095.4,0.7539]
[1732029619939,3.23018,3095.8,3095.4,0.7539]
[1732029620190,3.23001,3096.0,3095.4,3.98447]
[1732029620557,3.22973,3096.3,3095.4,1.47541]
[1732029620883,6.22959,3096.4,3095.7,0.55]
[1732029621056,3.22968,3096.3,3095.7,3.78028]
[1732029621256,3.22968,3096.3,3095.7,7.01048]
[1732029621460,3.22968,3096.3,3095.7,4.481248]
[1732029621643,4.03045,3096.5,3095.8,0.55]
[1732029621644,4.03049,3096.5,3095.8,0.55]
[1732029621992,0.01,3097.5,3095.6,0.66084127]
[1732029621993,3.2291,3096.9,3096.3,0.55]
[1732029622281,3.2291,3096.9,3096.4,0.377975]
[1732029622486,3.22916,3096.8,3096.2,3.77974]
[1732029622778,3.22878,3097.2,3096.6,3.22934]
[1732029622985,7.05943458,3097.8,3096.4,0.55]
[1732029622986,3.22841,3097.5,3096.4,0.55]
[1732029623167,4.63929458,3097.4,3096.1,0.8018]
[1732029623369,3.22935,3096.6,3096.2,0.55]
[1732029623541,4.63929458,3097.4,3096.2,0.55]
[1732029623542,3.22946,3096.5,3096.2,0.55]
[1732029623962,3.22946,3096.5,3095.8,4.00983]
[1732029624265,3.22963,3096.4,3095.9,0.55]
[1732029624566,3.22968,3096.3,3095.9,0.55]
[1732029624772,3.22935,3096.6,3096.1,0.55]
[1732029624976,3.22935,3096.6,3096.1,0.98387038]
[1732029625284,3.0,3096.9,3095.8,0.7797]
[1732029625285,3.22978,3096.2,3095.8,0.7797]
[1732029625587,4.06008,3096.8,3095.5,0.7885]
[1732029625588,3.23023,3095.8,3095.5,0.7885]
[1732029625754,3.23039,3095.6,3095.2,0.7885]
[1732029625954,3.23033,3095.7,3095.2,0.7885]
[1732029626155,0.8309,3096.1,3095.2,0.7885]
[1732029626360,3.23055,3095.5,3094.8,0.8163]
[1732029626673,3.23077,3095.3,3094.8,0.8163]
[1732029627093,3.23112,3094.9,3094.4,0.8043]
[1732029627505,3.2312,3094.9,3094.4,0.8043]
[1732029627667,3.23132,3094.8,3094.4,0.8043]
[1732029628063,0.7545,3095.4,3094.0,3.99304]
[1732029628263,3.23143,3094.6,3094.0,4.3914062]
[1732029628511,0.7545,3095.4,3094.0,4.3914062]
[1732029628512,3.23124,3094.8,3094.2,3.23183]
[1732029628811,3.23112,3094.9,3094.2,3.23183]
[1732029629197,3.0,3095.3,3094.1,0.43914062]
[1732029629395,3.23129,3094.8,3094.2,0.55]
[1732029629566,3.23103,3095.0,3094.4,0.55]
[1732029629912,3.23103,3095.0,3094.4,3.7816]
[1732029630298,3.23094,3095.1,3094.5,3.23147]
[1732029630465,3.23094,3095.1,3094.6,0.55]
[1732029630666,3.23131,3094.8,3094.3,0.55]
[1732029630970,3.0,3095.1,3094.4,0.55]
[1732029631166,3.23062,3095.4,3094.9,3.78112]
[1732029631397,3.23073,3095.3,3094.9,0.55]
[1732029631605,6.2305,3095.5,3094.9,3.23106]
[1732029631813,3.99962,3095.8,3095.3,0.55]
[1732029631977,3.23048,3095.6,3095.3,0.55]
[1732029632314,0.06112789,3095.5,3095.3,0.55]
[1732029632669,3.23002,3096.0,3095.4,3.2306]
[1732029632868,3.29022122,3095.9,3095.3,3.78067]
[1732029633170,3.29022122,3095.9,3095.1,3.78083]
[1732029633368,0.06013122,3095.9,3095.1,0.55]
[1732029633668,3.23085,3095.2,3094.8,0.55]
[1732029633868,0.05908693,3095.1,3094.8,0.55]
[1732029634069,3.23065,3095.4,3094.8,3.78115]
[1732029634264,0.05908154,3095.3,3094.8,3.78115]
[1732029634513,0.05908154,3095.3,3095.0,3.78092]
[1732029634744,0.05908154,3095.3,3095.2,3.7808]
[1732029635049,3.83129458,3095.6,3094.7,0.8274]
[1732029635261,3.23119,3094.9,3094.3,4.04499]
[1732029635409,3.23117,3094.9,3094.3,4.04499]
[1732029635721,3.2311,3095.0,3094.3,4.04499]
[1732029635920,0.05907397,3094.8,3094.4,3.23155]
[1732029636132,0.05907397,3094.8,3093.8,3.96906997]
[1732029636133,4.03184,3095.1,3094.5,3.2315]
[1732029636360,0.05907397,3094.7,3094.5,3.2315]
[1732029636650,4.03184,3095.1,3094.6,0.55]
[1732029636849,3.23102,3095.0,3094.4,0.55]
[1732029637014,3.23125,3094.8,3094.4,0.55]
[1732029637214,3.29009397,3095.0,3094.4,0.55]
[1732029637450,3.29009397,3095.0,3094.2,0.55]
[1732029637451,3.23128,3094.8,3094.2,0.55]
[1732029637649,3.23139,3094.7,3094.2,0.55]
[1732029637848,0.8009,3095.1,3093.9,3.23212]
[1732029637849,3.8009,3095.1,3093.9,3.23212]
[1732029638066,3.8009,3095.1,3093.8,1.50303997]
[1732029638067,0.05902974,3094.6,3093.8,0.8562097]
[1732029638228,7.03185,3095.1,3093.9,3.23216]
[1732029638229,3.8009,3095.1,3093.9,3.23216]
[1732029638408,0.05902974,3094.5,3093.9,3.23216]
[1732029638606,3.0,3094.9,3093.9,3.23216]
[1732029638849,0.05902974,3094.4,3093.8,0.8562097]
[1732029639047,3.23164,3094.5,3093.8,0.8562097]
[1732029639248,3.8009,3095.1,3093.9,3.78214]
[1732029639249,0.05901464,3094.3,3093.9,3.78214]
[1732029639564,0.05901464,3094.2,3093.9,3.78214]
[1732029639930,3.23185,3094.2,3093.9,0.55]
[1732029640245,3.29096464,3094.1,3093.9,0.55]
[1732029640449,0.05901464,3094.1,3093.9,0.55]
[1732029641006,3.23149,3094.6,3093.9,3.78209]
[1732029641212,0.05899307,3094.0,3093.9,1.26044797]
[1732029641414,0.7708,3094.8,3093.9,0.55]
[1732029641415,3.7708,3094.8,3093.9,0.55]
[1732029641755,3.23189,3094.2,3093.9,0.55]
[1732029642118,3.0,3094.7,3093.9,0.55]
[1732029642311,3.23216,3093.9,3093.8,0.0900097]
[1732029642511,3.23177,3094.3,3093.8,0.0900097]
[1732029642713,0.05701694,3094.2,3093.8,0.0900097]
[1732029643018,3.23212,3094.0,3093.8,0.0900097]
[1732029643356,3.28914024,3093.9,3093.8,0.0900097]
[1732029643508,0.05698024,3093.9,3093.8,0.0900097]
[1732029643709,3.28914024,3093.9,3093.8,0.0900097]
[1732029644532,0.05698024,3093.9,3093.8,0.0900097]
[1732029644735,3.28914024,3093.9,3093.8,0.0900097]
[1732029645465,0.05698024,3093.9,3093.8,0.0900097]
[1732029645609,3.28914024,3093.9,3093.8,0.0900097]
[1732029645812,0.05698024,3093.9,3093.8,0.0900097]
[1732029647663,3.0,3094.1,3093.8,0.0900097]
[1732029647821,0.05683564,3093.9,3093.8,0.0900097]
[1732029648023,3.0,3094.1,3093.8,0.0900097]
[1732029648348,3.23212,3094.0,3093.8,0.0900097]
[1732029648518,0.05683564,3094.0,3093.8,0.0900097]
[1732029649261,0.05683564,3094.0,3093.9,3.23216]
[1732029649484,0.05683564,3094.0,3093.8,0.0900097]
[1732029649773,3.23147,3094.6,3093.8,3.3222697]
[1732029649774,0.05575779,3093.9,3093.8,3.3222697]
[1732029649930,3.23193,3094.2,3093.8,0.0900097]
[1732029650130,0.05575779,3093.9,3093.8,0.6400097]
[1732029650360,3.23179,3094.3,3093.8,3.8722697]
[1732029650665,0.05575779,3093.9,3093.8,3.8722697]
[1732029650866,0.8053,3095.0,3094.3,3.23168]
[1732029651028,4.03638,3095.0,3094.4,0.323168]
[1732029651228,0.33596476,3095.1,3094.6,3.23136]
[1732029651424,3.23114,3094.9,3094.4,3.78155]
[1732029651626,3.23129,3094.8,3094.3,0.55]
[1732029651929,6.46234,3094.9,3094.3,0.951231]
[1732029652229,3.23092,3095.1,3094.6,3.23136]
[1732029652544,3.23091,3095.1,3094.6,3.2314]
[1732029652724,3.0,3095.0,3094.7,0.55]
[1732029652927,0.05097357,3094.9,3094.7,0.55]
[1732029653128,3.28210357,3094.9,3094.4,3.2316]
[1732029653330,0.05097357,3094.9,3094.4,3.2316]
[1732029653567,0.05097357,3094.9,3094.4,3.877941]
[1732029654489,3.23181,3094.3,3093.8,0.8577097]
[1732029654632,3.23158,3094.5,3093.8,4.0898897]
[1732029654829,0.05103294,3094.2,3093.8,4.49887867]
[1732029655080,3.23158,3094.5,3094.0,3.23204]
[1732029655372,0.05105234,3094.1,3094.0,3.23204]
[1732029655587,3.0,3094.6,3093.8,1.26669867]
[1732029655736,0.05105234,3094.1,3094.0,3.23197]
[1732029655934,0.7648,3094.8,3094.3,3.23171]
[1732029656160,6.23128,3094.8,3094.3,3.23171]
[1732029656383,9.4626,3094.8,3094.1,6.4638]
[1732029656682,6.23112,3094.9,3094.4,3.23158]
[1732029656993,3.23125,3094.8,3094.3,3.23165]
[1732029657349,3.23133,3094.7,3094.2,0.55]
[1732029657554,3.0,3094.9,3094.2,0.55]
[1732029657870,3.0,3094.9,3091.7,0.63555145]
[1732029657871,3.23342,3092.7,3091.7,0.63555145]
[1732029658088,3.23342,3092.7,3090.9,0.8232]
[1732029658089,3.23428,3091.9,3090.9,0.8232]
[1732029658283,7.83063458,3092.2,3090.8,0.1400097]
[1732029658284,2.44606181,3092.0,3090.8,0.1400097]
[1732029658443,2.44606181,3091.8,3090.8,0.1400097]
[1732029658801,3.0,3091.7,3090.8,0.1400097]
[1732029659102,3.23498,3091.3,3090.8,0.1400097]
[1732029659602,0.7654,3091.5,3090.8,0.1400097]
[1732029659740,3.23478,3091.4,3090.8,0.1400097]
[1732029660058,3.2349,3091.3,3090.8,0.1400097]
[1732029660254,3.0,3091.3,3090.8,0.1400097]
[1732029660783,3.23489,3091.3,3090.8,0.1400097]
[1732029660984,3.2351,3091.1,3090.8,0.1400097]
[1732029661187,3.2349,3091.3,3090.8,0.1400097]
[1732029661346,3.23515,3091.1,3090.8,0.1400097]
[1732029661547,3.23522,3091.0,3090.8,0.1400097]
[1732029661846,3.23479,3091.4,3090.8,0.1400097]
[1732029662146,3.23478,3091.4,3090.8,0.1400097]
[1732029662651,3.23511,3091.1,3090.8,0.1400097]
[1732029663000,3.23508,3091.2,3090.8,0.1400097]
[1732029663284,3.23509,3091.1,3091.0,0.64232377]
[1732029663645,3.2353,3090.9,3090.8,0.1400097]
[1732029663846,3.23509,3091.1,3090.8,0.1400097]
[1732029664041,3.23489,3091.3,3090.8,0.1400097]
[1732029664593,0.7654,3091.5,3090.9,0.55]
[1732029664594,3.2347,3091.5,3090.9,0.55]
[1732029664897,0.01,3092.4,3090.9,0.55]
[1732029664898,0.831,3092.4,3090.9,0.55]
[1732029665117,0.831,3092.4,3091.0,0.21169711]
[1732029665244,0.831,3092.4,3090.9,0.55]
[1732029665245,3.23497,3091.3,3090.9,0.55]
[1732029665723,3.23404,3092.1,3090.9,0.55]
[1732029665992,3.23383,3092.3,3090.9,0.55]
[1732029666157,0.831,3092.4,3090.9,0.55]
[1732029666346,3.23476,3091.5,3090.9,0.55]
[1732029666546,3.23519,3091.0,3090.9,0.47218997]
[1732029666768,3.23519,3091.0,3090.8,0.1400097]